[Event "Early-Titled-Tuesday-Blitz-January-23-2024"]
[Site "Chess.com"]
[Date "2024.01.23"]
[Round "2"]
[White "Der_Balak_3Halak"]
[Black "Zq1"]
[Result "0-1"]
[WhiteElo "2317"]
[BlackElo "2534"]
[TimeControl "180+1"]
[EndTime "8:18:49 PST"]
[Termination "Zq1 won by resignation"]

1. e4 {[%clk 0:03:00.9]} 1... c5 {[%clk 0:02:58.9]} 2. Nf3 {[%clk 0:02:59.8]}
2... d6 {[%clk 0:02:56.9]} 3. Bb5+ {[%clk 0:02:59.4]} 3... Bd7 {[%clk
0:02:56.3]} 4. Bxd7+ {[%clk 0:02:59.4]} 4... Qxd7 {[%clk 0:02:57]} 5. O-O {[%clk
0:03:00]} 5... Nc6 {[%clk 0:02:57]} 6. c3 {[%clk 0:02:59.6]} 6... Nf6 {[%clk
0:02:56.4]} 7. Re1 {[%clk 0:02:59.4]} 7... e6 {[%clk 0:02:55.5]} 8. d4 {[%clk
0:02:59.7]} 8... cxd4 {[%clk 0:02:55.1]} 9. cxd4 {[%clk 0:03:00.6]} 9... d5
{[%clk 0:02:55.4]} 10. e5 {[%clk 0:03:00.9]} 10... Ne4 {[%clk 0:02:55.2]} 11. a3
{[%clk 0:03:01.3]} 11... Be7 {[%clk 0:02:51.6]} 12. Qd3 {[%clk 0:03:01.4]} 12...
O-O {[%clk 0:02:50]} 13. Nbd2 {[%clk 0:03:01.6]} 13... Nxd2 {[%clk 0:02:48.9]}
14. Bxd2 {[%clk 0:03:02.5]} 14... Rac8 {[%clk 0:02:46.9]} 15. Re3 {[%clk
0:03:00.1]} 15... b6 {[%clk 0:02:43.4]} 16. Ne1 {[%clk 0:02:56.6]} 16... f5
{[%clk 0:02:40.1]} 17. exf6 {[%clk 0:02:44.6]} 17... Bxf6 {[%clk 0:02:39.5]} 18.
Nf3 {[%clk 0:02:40.7]} 18... g6 {[%clk 0:02:34.9]} 19. Rae1 {[%clk 0:02:38.9]}
19... Rce8 {[%clk 0:02:32.4]} 20. h4 {[%clk 0:02:15.3]} 20... Rf7 {[%clk
0:02:10.7]} 21. h5 {[%clk 0:02:00.4]} 21... gxh5 {[%clk 0:02:08.3]} 22. Ne5
{[%clk 0:01:38.7]} 22... Bxe5 {[%clk 0:02:06.8]} 23. dxe5 {[%clk 0:01:39.6]}
23... Rg7 {[%clk 0:02:05.5]} 24. Rf3 {[%clk 0:00:37.2]} 24... Ne7 {[%clk
0:02:00.1]} 25. Rh3 {[%clk 0:00:16.1]} 25... Nf5 {[%clk 0:01:59.9]} 26. Rxh5
{[%clk 0:00:14.7]} 26... Qf7 {[%clk 0:01:55]} 27. Rg5 {[%clk 0:00:14.9]} 27...
Rxg5 {[%clk 0:01:44.9]} 28. Bxg5 {[%clk 0:00:15.8]} 28... Rc8 {[%clk 0:01:43.7]}
29. Rc1 {[%clk 0:00:12.9]} 29... Rxc1+ {[%clk 0:01:41.3]} 30. Bxc1 {[%clk
0:00:13.8]} 30... Qg6 {[%clk 0:01:39.3]} 31. g3 {[%clk 0:00:12]} 31... h5 {[%clk
0:01:37.2]} 32. Qa6 {[%clk 0:00:09.5]} 32... h4 {[%clk 0:01:33.9]} 33. Qc8+
{[%clk 0:00:09.5]} 33... Kh7 {[%clk 0:01:32.5]} 34. Bf4 {[%clk 0:00:03.2]} 34...
hxg3 {[%clk 0:01:30.4]} 35. Qd7+ {[%clk 0:00:03.7]} 35... Kg8 {[%clk 0:01:04.9]}
36. Qd8+ {[%clk 0:00:03.7]} 36... Kg7 {[%clk 0:00:56.7]} 37. Qd7+ {[%clk
0:00:04.3]} 37... Qf7 {[%clk 0:00:56.2]} 38. Qxf7+ {[%clk 0:00:04.8]} 38... Kxf7
{[%clk 0:00:55.7]} 39. fxg3 {[%clk 0:00:04.7]} 39... Kg6 {[%clk 0:00:52.6]} 40.
Kf2 {[%clk 0:00:05.2]} 40... Kh5 {[%clk 0:00:50.2]} 41. Kf3 {[%clk 0:00:04.6]}
41... Nd4+ {[%clk 0:00:48.3]} 42. Ke3 {[%clk 0:00:05.2]} 42... Nc6 {[%clk
0:00:40.3]} 43. Kf3 {[%clk 0:00:04.3]} 43... Na5 {[%clk 0:00:39.2]} 44. g4+
{[%clk 0:00:04.9]} 44... Kg6 {[%clk 0:00:38.5]} 45. Bc1 {[%clk 0:00:03]} 45...
b5 {[%clk 0:00:28.1]} 46. Kf4 {[%clk 0:00:02.6]} 46... Nc6 {[%clk 0:00:26.3]}
47. Bd2 {[%clk 0:00:02]} 47... a5 {[%clk 0:00:23.5]} 48. Bc3 {[%clk 0:00:02.3]}
48... b4 {[%clk 0:00:22.7]} 49. axb4 {[%clk 0:00:02.2]} 49... axb4 {[%clk
0:00:22.8]} 50. Bd2 {[%clk 0:00:02.8]} 50... b3 {[%clk 0:00:21]} 51. Bc3 {[%clk
0:00:02.9]} 51... Na7 {[%clk 0:00:19.2]} 52. Bd4 {[%clk 0:00:02.6]} 52... Nb5
{[%clk 0:00:19.3]} 53. Bc5 {[%clk 0:00:03.1]} 53... Nc3 {[%clk 0:00:14.9]} 54.
Bd4 {[%clk 0:00:02.2]} 54... Ne2+ {[%clk 0:00:12.9]} 55. Ke3 {[%clk 0:00:02.8]}
55... Nxd4 {[%clk 0:00:11.1]} 56. Kxd4 {[%clk 0:00:03.7]} 56... Kg5 {[%clk
0:00:11.2]} 57. Kc3 {[%clk 0:00:03.4]} 57... Kxg4 {[%clk 0:00:11.5]} 58. Kxb3
{[%clk 0:00:04.3]} 58... Kf4 {[%clk 0:00:11.8]} 59. Kc3 {[%clk 0:00:03.7]} 59...
Kxe5 {[%clk 0:00:11.8]} 60. Kd3 {[%clk 0:00:03.4]} 60... Kd6 {[%clk 0:00:11.6]}
61. Kd4 {[%clk 0:00:03.2]} 61... e5+ {[%clk 0:00:12.2]} 62. Kd3 {[%clk
0:00:04.1]} 62... Kc5 {[%clk 0:00:12.3]} 63. Kc3 {[%clk 0:00:04.2]} 63... Kb5
{[%clk 0:00:12.1]} 64. Kd3 {[%clk 0:00:04.5]} 64... Kb4 {[%clk 0:00:12.2]} 65.
Kc2 {[%clk 0:00:05.1]} 65... e4 {[%clk 0:00:11.7]} 66. Kd2 {[%clk 0:00:04.9]}
66... Kb3 {[%clk 0:00:11.7]} 67. Kc1 {[%clk 0:00:05.6]} 67... d4 {[%clk
0:00:11.3]} 68. Kb1 {[%clk 0:00:06.5]} 68... d3 {[%clk 0:00:10.3]} 69. Kc1
{[%clk 0:00:07.4]} 69... e3 {[%clk 0:00:10.3]} 70. Kd1 {[%clk 0:00:06.9]} 70...
Kxb2 {[%clk 0:00:10.1]} 71. Ke1 {[%clk 0:00:07.8]} 71... Kc2 {[%clk 0:00:09.6]}
0-1

[Event "Early-Titled-Tuesday-Blitz-January-23-2024"]
[Site "Chess.com"]
[Date "2024.01.23"]
[Round "2"]
[White "diamonds13"]
[Black "Szczor"]
[Result "1/2-1/2"]
[WhiteElo "2355"]
[BlackElo "2598"]
[TimeControl "180+1"]
[EndTime "8:18:55 PST"]
[Termination "Game drawn - insufficient material"]

1. d4 {[%clk 0:02:54]} 1... Nf6 {[%clk 0:02:58.1]} 2. c4 {[%clk 0:02:54.1]} 2...
e6 {[%clk 0:02:50.2]} 3. Nc3 {[%clk 0:02:52.6]} 3... Bb4 {[%clk 0:02:45.1]} 4.
e3 {[%clk 0:02:52.8]} 4... O-O {[%clk 0:02:43.3]} 5. Bd2 {[%clk 0:02:52.6]} 5...
c5 {[%clk 0:02:43.1]} 6. Bd3 {[%clk 0:02:51.1]} 6... cxd4 {[%clk 0:02:41.1]} 7.
exd4 {[%clk 0:02:51.3]} 7... d5 {[%clk 0:02:40.6]} 8. Nge2 {[%clk 0:02:50.1]}
8... Nc6 {[%clk 0:02:40]} 9. c5 {[%clk 0:02:48.6]} 9... e5 {[%clk 0:02:34.3]}
10. Nb5 {[%clk 0:02:27.1]} 10... e4 {[%clk 0:02:19.6]} 11. Bc2 {[%clk
0:02:18.7]} 11... Bg4 {[%clk 0:02:07.9]} 12. h3 {[%clk 0:01:58.6]} 12... Bxe2
{[%clk 0:01:46.3]} 13. Qxe2 {[%clk 0:01:46]} 13... a6 {[%clk 0:01:46.2]} 14.
Bxb4 {[%clk 0:01:41.5]} 14... axb5 {[%clk 0:01:45.6]} 15. Bc3 {[%clk 0:01:27.4]}
15... b4 {[%clk 0:01:45.2]} 16. Bd2 {[%clk 0:01:21.3]} 16... Nxd4 {[%clk
0:01:44.7]} 17. Qd1 {[%clk 0:01:21.5]} 17... Nxc2+ {[%clk 0:01:34.3]} 18. Qxc2
{[%clk 0:01:21.4]} 18... d4 {[%clk 0:01:18.2]} 19. O-O {[%clk 0:01:15.7]} 19...
Qd5 {[%clk 0:01:10.8]} 20. Bxb4 {[%clk 0:01:13.9]} 20... Rfc8 {[%clk 0:01:03.1]}
21. a3 {[%clk 0:01:10.5]} 21... b6 {[%clk 0:01:00.8]} 22. Rac1 {[%clk
0:00:58.9]} 22... bxc5 {[%clk 0:00:56.5]} 23. Bxc5 {[%clk 0:00:58.8]} 23... Nd7
{[%clk 0:00:53.6]} 24. b4 {[%clk 0:00:58.7]} 24... Nxc5 {[%clk 0:00:53]} 25.
bxc5 {[%clk 0:00:58.8]} 25... Rxa3 {[%clk 0:00:53.5]} 26. Rfd1 {[%clk
0:00:50.2]} 26... f5 {[%clk 0:00:49.8]} 27. Qb2 {[%clk 0:00:44.3]} 27... Ra4
{[%clk 0:00:39.1]} 28. c6 {[%clk 0:00:42.1]} 28... e3 {[%clk 0:00:13.6]} 29.
fxe3 {[%clk 0:00:34.3]} 29... d3 {[%clk 0:00:08.2]} 30. Ra1 {[%clk 0:00:20.6]}
30... Rc4 {[%clk 0:00:06.5]} 31. Qb3 {[%clk 0:00:17.7]} 31... d2 {[%clk
0:00:03.7]} 32. Rxd2 {[%clk 0:00:15.7]} 32... Qxc6 {[%clk 0:00:04.1]} 33. Ra7
{[%clk 0:00:12.8]} 33... h6 {[%clk 0:00:04]} 34. Rd4 {[%clk 0:00:11.7]} 34...
Kh7 {[%clk 0:00:02.4]} 35. Rxc4 {[%clk 0:00:11.9]} 35... Qxc4 {[%clk 0:00:03.3]}
36. Qxc4 {[%clk 0:00:12.3]} 36... Rxc4 {[%clk 0:00:04.2]} 37. Rf7 {[%clk
0:00:11.6]} 37... Kg6 {[%clk 0:00:04.6]} 38. Re7 {[%clk 0:00:11.3]} 38... Kf6
{[%clk 0:00:04.5]} 39. Re8 {[%clk 0:00:10.5]} 39... Rc2 {[%clk 0:00:05]} 40.
Rf8+ {[%clk 0:00:09.8]} 40... Kg5 {[%clk 0:00:05.3]} 41. Rf7 {[%clk 0:00:09.6]}
41... g6 {[%clk 0:00:05.7]} 42. Re7 {[%clk 0:00:09.6]} 42... Re2 {[%clk
0:00:05.9]} 43. Kf1 {[%clk 0:00:09.1]} 43... Ra2 {[%clk 0:00:05.5]} 44. g3
{[%clk 0:00:09.7]} 44... Rh2 {[%clk 0:00:04.5]} 45. Re6 {[%clk 0:00:06.7]} 45...
Rxh3 {[%clk 0:00:04.2]} 46. Kg2 {[%clk 0:00:07.3]} 46... Rh5 {[%clk 0:00:04.3]}
47. e4 {[%clk 0:00:07.6]} 47... fxe4 {[%clk 0:00:03.4]} 48. Re5+ {[%clk
0:00:07.7]} 48... Kf6 {[%clk 0:00:03.4]} 49. Rxe4 {[%clk 0:00:08.5]} 49... Rb5
{[%clk 0:00:03.8]} 50. Rf4+ {[%clk 0:00:08.7]} 50... Kg5 {[%clk 0:00:04.4]} 51.
Rc4 {[%clk 0:00:08.4]} 51... h5 {[%clk 0:00:04.8]} 52. Kh3 {[%clk 0:00:08.6]}
52... Rb3 {[%clk 0:00:04.8]} 53. Rd4 {[%clk 0:00:08.9]} 53... Kh6 {[%clk
0:00:05.2]} 54. Rd5 {[%clk 0:00:09.1]} 54... g5 {[%clk 0:00:05.4]} 55. Rd6+
{[%clk 0:00:09.5]} 55... Kg7 {[%clk 0:00:05.8]} 56. Rd7+ {[%clk 0:00:10.2]}
56... Kf6 {[%clk 0:00:05.4]} 57. Rd5 {[%clk 0:00:10.5]} 57... Re3 {[%clk
0:00:04.5]} 58. Rb5 {[%clk 0:00:10.4]} 58... Re5 {[%clk 0:00:05.1]} 59. Rb6+
{[%clk 0:00:10.8]} 59... Kf5 {[%clk 0:00:05.6]} 60. Rb8 {[%clk 0:00:10.7]} 60...
g4+ {[%clk 0:00:06]} 61. Kh4 {[%clk 0:00:10.5]} 61... Re1 {[%clk 0:00:06.3]} 62.
Rf8+ {[%clk 0:00:11]} 62... Kg6 {[%clk 0:00:06.7]} 63. Rg8+ {[%clk 0:00:11.2]}
63... Kf7 {[%clk 0:00:07.1]} 64. Rh8 {[%clk 0:00:06.8]} 64... Rh1+ {[%clk
0:00:06.8]} 65. Kg5 {[%clk 0:00:07.4]} 65... Rh3 {[%clk 0:00:06.5]} 66. Rxh5
{[%clk 0:00:07.3]} 66... Rxg3 {[%clk 0:00:06.8]} 67. Rh7+ {[%clk 0:00:07.8]}
67... Ke6 {[%clk 0:00:06.7]} 68. Rh6+ {[%clk 0:00:08.3]} 68... Ke5 {[%clk
0:00:06.7]} 69. Rh4 {[%clk 0:00:08.9]} 69... Rg1 {[%clk 0:00:05.4]} 70. Rxg4
{[%clk 0:00:09.6]} 70... Rxg4+ {[%clk 0:00:05.9]} 71. Kxg4 {[%clk 0:00:10]}
1/2-1/2

[Event "Early-Titled-Tuesday-Blitz-January-23-2024"]
[Site "Chess.com"]
[Date "2024.01.23"]
[Round "2"]
[White "Roedor"]
[Black "Maxfan2008"]
[Result "0-1"]
[WhiteElo "2307"]
[BlackElo "2527"]
[TimeControl "180+1"]
[EndTime "8:18:58 PST"]
[Termination "Maxfan2008 won by resignation"]

1. c4 {[%clk 0:02:58.5]} 1... c6 {[%clk 0:02:59.5]} 2. g3 {[%clk 0:02:58.4]}
2... Nf6 {[%clk 0:02:59.3]} 3. Bg2 {[%clk 0:02:59]} 3... d5 {[%clk 0:02:59.5]}
4. Nf3 {[%clk 0:02:59.7]} 4... Bg4 {[%clk 0:02:59]} 5. O-O {[%clk 0:02:58.9]}
5... e6 {[%clk 0:02:58.6]} 6. Ne5 {[%clk 0:02:55.7]} 6... Bf5 {[%clk 0:02:58]}
7. cxd5 {[%clk 0:02:51]} 7... exd5 {[%clk 0:02:57.9]} 8. Qb3 {[%clk 0:02:49]}
8... Nbd7 {[%clk 0:02:54]} 9. Nxd7 {[%clk 0:02:46.5]} 9... Qxd7 {[%clk
0:02:54.9]} 10. d3 {[%clk 0:02:45.8]} 10... Be7 {[%clk 0:02:52.5]} 11. Nc3
{[%clk 0:02:45.6]} 11... O-O {[%clk 0:02:51.7]} 12. e4 {[%clk 0:02:45.3]} 12...
dxe4 {[%clk 0:02:25.3]} 13. dxe4 {[%clk 0:02:46.2]} 13... Bh3 {[%clk 0:02:18.4]}
14. Rd1 {[%clk 0:02:45.3]} 14... Qg4 {[%clk 0:02:16.7]} 15. Be3 {[%clk
0:02:34.1]} 15... b5 {[%clk 0:01:47]} 16. f3 {[%clk 0:02:30]} 16... Qh5 {[%clk
0:01:44.1]} 17. Ne2 {[%clk 0:02:26.4]} 17... Bxg2 {[%clk 0:01:41.4]} 18. Kxg2
{[%clk 0:02:27.3]} 18... a5 {[%clk 0:01:21.8]} 19. Nf4 {[%clk 0:02:25.7]} 19...
Qe5 {[%clk 0:01:15.7]} 20. Rac1 {[%clk 0:02:21.1]} 20... Rfc8 {[%clk 0:01:12.4]}
21. Qc3 {[%clk 0:02:07.7]} 21... Qxc3 {[%clk 0:01:07.4]} 22. Rxc3 {[%clk
0:02:08.6]} 22... Bb4 {[%clk 0:00:52.4]} 23. Rcd3 {[%clk 0:02:06.5]} 23... c5
{[%clk 0:00:47.9]} 24. e5 {[%clk 0:02:06.5]} 24... c4 {[%clk 0:00:46.3]} 25. Rd4
{[%clk 0:02:04.7]} 25... Ne8 {[%clk 0:00:40.5]} 26. Rd5 {[%clk 0:02:00.8]} 26...
Nc7 {[%clk 0:00:30.8]} 27. Rd7 {[%clk 0:01:59.4]} 27... h6 {[%clk 0:00:23.4]}
28. g4 {[%clk 0:01:52.7]} 28... a4 {[%clk 0:00:20]} 29. a3 {[%clk 0:01:51.8]}
29... Bf8 {[%clk 0:00:19.5]} 30. Bd2 {[%clk 0:01:40.9]} 30... Na6 {[%clk
0:00:11.2]} 31. e6 {[%clk 0:01:34.2]} 31... Nc5 {[%clk 0:00:09.1]} 32. exf7+
{[%clk 0:01:32]} 32... Kh7 {[%clk 0:00:08.8]} 33. Rd5 {[%clk 0:01:30.9]} 33...
Ra7 {[%clk 0:00:08.6]} 34. Bb4 {[%clk 0:01:28.3]} 34... Rxf7 {[%clk 0:00:08.5]}
35. Bxc5 {[%clk 0:01:21.4]} 35... Rxc5 {[%clk 0:00:07.5]} 36. Ne6 {[%clk
0:01:18.9]} 36... Rxd5 {[%clk 0:00:07]} 37. Rxd5 {[%clk 0:01:19.5]} 37... c3
{[%clk 0:00:05.7]} 38. bxc3 {[%clk 0:01:18.1]} 38... Bxa3 {[%clk 0:00:05.5]} 39.
Rxb5 {[%clk 0:01:18.4]} 39... Bc1 {[%clk 0:00:05.5]} 40. Ra5 {[%clk 0:01:16.7]}
40... a3 {[%clk 0:00:05.8]} 41. h4 {[%clk 0:01:12.8]} 41... Re7 {[%clk
0:00:06.1]} 42. Nd4 {[%clk 0:01:11.1]} 42... Bb2 {[%clk 0:00:05.2]} 43. Nb5
{[%clk 0:01:00.1]} 43... Re5 {[%clk 0:00:05.3]} 44. c4 {[%clk 0:00:59.4]} 44...
Rc5 {[%clk 0:00:05.1]} 45. Nxa3 {[%clk 0:00:57.1]} 45... Rxa5 {[%clk 0:00:04.7]}
46. Nc2 {[%clk 0:00:56]} 46... Bc3 {[%clk 0:00:04.6]} 47. Ne3 {[%clk 0:00:56]}
47... Ra2+ {[%clk 0:00:04.7]} 48. Kh3 {[%clk 0:00:54.6]} 48... Bd4 {[%clk
0:00:05.6]} 49. Nf5 {[%clk 0:00:54.6]} 49... Bc5 {[%clk 0:00:05.7]} 50. g5
{[%clk 0:00:54.6]} 50... hxg5 {[%clk 0:00:05.5]} 51. hxg5 {[%clk 0:00:55.5]}
51... Kg6 {[%clk 0:00:06]} 52. Kg4 {[%clk 0:00:48.4]} 52... Rf2 {[%clk
0:00:05.6]} 53. Nh4+ {[%clk 0:00:44.4]} 53... Kf7 {[%clk 0:00:05.8]} 54. Kf5
{[%clk 0:00:44.4]} 54... Rc2 {[%clk 0:00:05.7]} 55. g6+ {[%clk 0:00:44.5]} 55...
Ke7 {[%clk 0:00:05.6]} 56. Ke5 {[%clk 0:00:41.8]} 56... Rxc4 {[%clk 0:00:05.7]}
57. Nf5+ {[%clk 0:00:42.2]} 57... Kf8 {[%clk 0:00:06]} 58. f4 {[%clk 0:00:40.4]}
58... Rc1 {[%clk 0:00:06]} 59. Ng3 {[%clk 0:00:38.4]} 59... Be7 {[%clk
0:00:05.9]} 60. f5 {[%clk 0:00:38.3]} 60... Bf6+ {[%clk 0:00:06.4]} 61. Ke6
{[%clk 0:00:38.1]} 61... Rc6+ {[%clk 0:00:06.6]} 62. Kd5 {[%clk 0:00:37.5]}
62... Ra6 {[%clk 0:00:07]} 63. Ne4 {[%clk 0:00:37.6]} 63... Ra5+ {[%clk
0:00:07.1]} 64. Kd6 {[%clk 0:00:36.8]} 64... Be5+ {[%clk 0:00:06.9]} 65. Ke6
{[%clk 0:00:36.3]} 65... Ba1 {[%clk 0:00:07.2]} 66. Ng5 {[%clk 0:00:35.7]} 66...
Re5+ {[%clk 0:00:07.5]} 67. Kd6 {[%clk 0:00:34.5]} 67... Rxf5 {[%clk 0:00:08.3]}
68. Ne6+ {[%clk 0:00:33.2]} 68... Kg8 {[%clk 0:00:08.5]} 69. Ke7 {[%clk
0:00:33.1]} 69... Re5 {[%clk 0:00:08.5]} 70. Kd7 {[%clk 0:00:32]} 70... Rxe6
{[%clk 0:00:08.8]} 71. Kxe6 {[%clk 0:00:32.9]} 71... Bf6 {[%clk 0:00:09.2]} 72.
Kd7 {[%clk 0:00:31.7]} 72... Kf8 {[%clk 0:00:10.1]} 73. Ke6 {[%clk 0:00:30.4]}
73... Ke8 {[%clk 0:00:10.3]} 74. Kd6 {[%clk 0:00:30.9]} 74... Kd8 {[%clk
0:00:10.2]} 75. Ke6 {[%clk 0:00:31]} 75... Ke8 {[%clk 0:00:10.7]} 76. Kd6 {[%clk
0:00:31.5]} 76... Bg5 {[%clk 0:00:10.1]} 77. Ke6 {[%clk 0:00:31.6]} 77... Bh4
{[%clk 0:00:10.4]} 78. Kd6 {[%clk 0:00:31.6]} 78... Bg3+ {[%clk 0:00:10]} 79.
Ke6 {[%clk 0:00:32]} 79... Bb8 {[%clk 0:00:10.4]} 80. Kd5 {[%clk 0:00:31]} 80...
Ke7 {[%clk 0:00:10.7]} 0-1

[Event "Early-Titled-Tuesday-Blitz-January-23-2024"]
[Site "Chess.com"]
[Date "2024.01.23"]
[Round "2"]
[White "francyIM"]
[Black "ural58"]
[Result "0-1"]
[WhiteElo "2803"]
[BlackElo "2429"]
[TimeControl "180+1"]
[EndTime "8:18:59 PST"]
[Termination "ural58 won on time"]

1. e4 {[%clk 0:02:24.1]} 1... d5 {[%clk 0:02:26.9]} 2. exd5 {[%clk 0:02:23.6]}
2... Qxd5 {[%clk 0:02:24.9]} 3. Nf3 {[%clk 0:02:21.9]} 3... Bg4 {[%clk
0:02:22.8]} 4. Be2 {[%clk 0:02:21.7]} 4... Nc6 {[%clk 0:02:22.3]} 5. Nc3 {[%clk
0:02:19.4]} 5... Qd7 {[%clk 0:02:21.4]} 6. h3 {[%clk 0:02:16.2]} 6... Bf5 {[%clk
0:02:20.9]} 7. d3 {[%clk 0:02:10.6]} 7... e5 {[%clk 0:02:20.1]} 8. Be3 {[%clk
0:02:11.3]} 8... Be7 {[%clk 0:02:10.5]} 9. O-O {[%clk 0:02:05.7]} 9... O-O-O
{[%clk 0:02:02.2]} 10. a4 {[%clk 0:01:43.6]} 10... a6 {[%clk 0:01:59.7]} 11. Nd2
{[%clk 0:01:41.9]} 11... g5 {[%clk 0:01:57.4]} 12. a5 {[%clk 0:01:36.3]} 12...
h5 {[%clk 0:01:53.2]} 13. Nce4 {[%clk 0:01:29]} 13... g4 {[%clk 0:01:51.1]} 14.
hxg4 {[%clk 0:01:26.9]} 14... hxg4 {[%clk 0:01:50.1]} 15. f3 {[%clk 0:01:24.2]}
15... Nd4 {[%clk 0:01:48.2]} 16. fxg4 {[%clk 0:01:23.1]} 16... Nxe2+ {[%clk
0:01:42.8]} 17. Qxe2 {[%clk 0:01:24]} 17... Bxg4 {[%clk 0:01:43]} 18. Qe1 {[%clk
0:01:20.8]} 18... f5 {[%clk 0:01:42.5]} 19. Nf2 {[%clk 0:01:20.3]} 19... f4
{[%clk 0:01:37.9]} 20. Ba7 {[%clk 0:01:20.3]} 20... Bh4 {[%clk 0:01:34.1]} 21.
Qxe5 {[%clk 0:01:18.8]} 21... Nf6 {[%clk 0:01:21.1]} 22. Qxf4 {[%clk 0:01:07.1]}
22... Be2 {[%clk 0:01:09.3]} 23. Nfe4 {[%clk 0:00:55.8]} 23... Bxf1 {[%clk
0:01:06.3]} 24. Rxf1 {[%clk 0:00:47.8]} 24... Nxe4 {[%clk 0:01:03.4]} 25. Nxe4
{[%clk 0:00:48.7]} 25... Rdf8 {[%clk 0:00:54.9]} 26. Qxf8+ {[%clk 0:00:32.5]}
26... Rxf8 {[%clk 0:00:54.5]} 27. Rxf8+ {[%clk 0:00:33.4]} 27... Bd8 {[%clk
0:00:54.6]} 28. Be3 {[%clk 0:00:33.3]} 28... Qg7 {[%clk 0:00:50.7]} 29. Bc5
{[%clk 0:00:17.3]} 29... Kd7 {[%clk 0:00:42]} 30. c3 {[%clk 0:00:17.4]} 30... b6
{[%clk 0:00:41.5]} 31. axb6 {[%clk 0:00:16.9]} 31... cxb6 {[%clk 0:00:41.9]} 32.
Ba3 {[%clk 0:00:16.6]} 32... Be7 {[%clk 0:00:40.3]} 33. Bxe7 {[%clk 0:00:16.7]}
33... Kxe7 {[%clk 0:00:40.5]} 34. Rf2 {[%clk 0:00:17.6]} 34... Qg4 {[%clk
0:00:35.7]} 35. Rf3 {[%clk 0:00:17.9]} 35... Qh4 {[%clk 0:00:30.8]} 36. Rf2
{[%clk 0:00:17.7]} 36... Qh5 {[%clk 0:00:30.5]} 37. Rf3 {[%clk 0:00:17.3]} 37...
Qb5 {[%clk 0:00:27.9]} 38. b4 {[%clk 0:00:14.9]} 38... a5 {[%clk 0:00:27.8]} 39.
bxa5 {[%clk 0:00:14.9]} 39... bxa5 {[%clk 0:00:28.2]} 40. Nd2 {[%clk 0:00:13.6]}
40... a4 {[%clk 0:00:19.9]} 41. Nc4 {[%clk 0:00:13.9]} 41... Qb1+ {[%clk
0:00:19.5]} 42. Kh2 {[%clk 0:00:13.4]} 42... Qc1 {[%clk 0:00:18.3]} 43. d4
{[%clk 0:00:12.5]} 43... a3 {[%clk 0:00:18]} 44. Nxa3 {[%clk 0:00:12.6]} 44...
Qxa3 {[%clk 0:00:18.7]} 45. g4 {[%clk 0:00:12.6]} 45... Qc1 {[%clk 0:00:18]} 46.
Kg3 {[%clk 0:00:12.9]} 46... Qg1+ {[%clk 0:00:18]} 47. Kf4 {[%clk 0:00:13.2]}
47... Qh2+ {[%clk 0:00:17.7]} 48. Kf5 {[%clk 0:00:13.4]} 48... Kf7 {[%clk
0:00:18.3]} 49. g5 {[%clk 0:00:13.3]} 49... Qh7+ {[%clk 0:00:17.3]} 50. Kg4+
{[%clk 0:00:13.6]} 50... Kg7 {[%clk 0:00:16.6]} 51. Re3 {[%clk 0:00:13.3]} 51...
Qh1 {[%clk 0:00:16.2]} 52. Re7+ {[%clk 0:00:12.8]} 52... Kf8 {[%clk 0:00:16.6]}
53. Re3 {[%clk 0:00:12.3]} 53... Qd1+ {[%clk 0:00:16.7]} 54. Kf4 {[%clk
0:00:12.7]} 54... Qd2 {[%clk 0:00:16.6]} 55. Ke4 {[%clk 0:00:12.8]} 55... Kf7
{[%clk 0:00:16.9]} 56. c4 {[%clk 0:00:11.9]} 56... Qc2+ {[%clk 0:00:15.9]} 57.
Kd5 {[%clk 0:00:12.2]} 57... Qf5+ {[%clk 0:00:15.4]} 58. Re5 {[%clk 0:00:12.9]}
58... Qf3+ {[%clk 0:00:15.5]} 59. Kc5 {[%clk 0:00:13.6]} 59... Qa3+ {[%clk
0:00:15]} 60. Kd5 {[%clk 0:00:13.6]} 60... Qf3+ {[%clk 0:00:14.9]} 61. Kd6
{[%clk 0:00:14.2]} 61... Qd3 {[%clk 0:00:12.5]} 62. Kc5 {[%clk 0:00:12.6]} 62...
Qa3+ {[%clk 0:00:12.5]} 63. Kc6 {[%clk 0:00:11.5]} 63... Qd3 {[%clk 0:00:11.5]}
0-1